{"text_format":"3","workbook":"xlsx","n_sheets":1,"sheets":["Математика"],"not_rendered":{"defined_names":16},"read":"whole","date_system":"1900"}

{"sheet":"Математика","index":0,"n_rows":58,"n_cols":11,"rows_kept":58}
["№","Фамилия","Имя","Пол","Класс","Класс участия","Балл","Статус","Призер МЭ прошлого года","Учитель","Место работы учителя"]
[1,3,4,6,9,10,11,13,14,15,16]
[null,"Ямщикова","Мария ","ж",5,5,6,null,null,"Доброхотова Э.Р","\"Лицей № 2\""]
[null,"Сапин","Семен","м",5,5,25,null,null,"Доброхотова Э.Р","\"Лицей № 2\""]
[null,"Потущева","Вероника","ж",5,5,11,null,null,"Доброхотова Э.Р","\"Лицей № 2\""]
[null,"Парамонов","Артем","м",5,5,21,null,null,"Доброхотова Э.Р","\"Лицей № 2\""]
[null,"Копышев","Илья","м",5,5,14,null,null,"Доброхотова Э.Р","\"Лицей № 2\""]
[null,"Кротов","Тимофей","м",5,5,11,null,null,"Доброхотова Э.Р","\"Лицей № 2\""]
[null,"Кадыров","Амир","м",5,5,21,null,null,"Доброхотова Э.Р","\"Лицей № 2\""]
[null,"Паиров","Арсений","м",5,5,21,null,null,"Доброхотова Э.Р","\"Лицей № 2\""]
[null,"Артемьев","Иван","м",5,5,17,null,null,"Доброхотова Э.Р","\"Лицей № 2\""]
[null,"Назиров","Аброр","м",5,5,0,null,null,"Доброхотова Э.Р","\"Лицей № 2\""]
[null,"Калеников","Ярослав","м",5,5,14,null,null,"Доброхотова Э.Р","\"Лицей № 2\""]
[null,"Васильева","Полина","ж",5,5,7,null,null,"Доброхотова Э.Р","\"Лицей № 2\""]
[null,"Зубарев ","Матвей","м",5,5,3,null,null,"Доброхотова Э.Р","\"Лицей № 2\""]
[1,"Сущиков","Иван","м",6,6,21,null,null,"Доброхотова Э.Р","\"Лицей № 2\""]
[2,"Редюков","Артем","м",6,6,7,null,null,"Доброхотова Э.Р","\"Лицей № 2\""]
[3,"Замалетдинов","Данис","м",6,6,14,null,null,{"$f":"J16","v":"Доброхотова Э.Р"},"\"Лицей № 2\""]
[4,"Колпаков","Егор","м",6,6,28,"Призер",null,"Доброхотова Э.Р","\"Лицей № 2\""]
[5,"Зарипов","Данис","м",6,6,28,"Призер",null,"Доброхотова Э.Р","\"Лицей № 2\""]
[6,"Ситдиков","Тимур","м",6,6,28,"Призер",null,"Доброхотова Э.Р","\"Лицей № 2\""]
[7,"Сидоров","Илья","м",6,6,7,null,null,"Доброхотова Э.Р","\"Лицей № 2\""]
[8,"Новиков","Всеволод","м",6,6,14,null,null,"Доброхотова Э.Р","\"Лицей № 2\""]
[9,"Хорев","Кирилл","м",6,6,35,"Победитель",null,"Доброхотова Э.Р","\"Лицей № 2\""]
[10,"Юдинцев","Олег","м",6,6,14,null,null,"Доброхотова Э.Р","\"Лицей № 2\""]
[11,"Мустафин","Реваль","м",6,6,21,null,null,"Доброхотова Э.Р","\"Лицей № 2\""]
[12,"Мухаметов","Тимур","м",7,7,14,null,null,"Шагиева Алина Ленаровна",{"$f":"K25","v":"\"Лицей № 2\""}]
[13,"Коледов","Михаил","м",7,7,21,null,null,"Шагиева Алина Ленаровна","\"Лицей № 2\""]
[14,"Сахапов","Риналь","м",7,7,2,null,null,"Шагиева Алина Ленаровна","\"Лицей № 2\""]
[15,"Маусов","Кирилл","м",7,7,23,null,null,"Зелинский Руслан Владимирович","\"Лицей № 2\""]
[16,"Крайнов","Родион","м",7,7,23,null,null,"Зелинский Руслан Владимирович","\"Лицей № 2\""]
[17,"Никитин","Вадим","м",7,7,14,null,null,"Зелинский Руслан Владимирович","\"Лицей № 2\""]
[18,"Шакирова","Диана","ж",7,7,14,null,null,"Зелинский Руслан Владимирович","\"Лицей № 2\""]
[19,"Коваленко","Екатерина","ж",7,7,28,"Призер",null,{"$f":"J32","v":"Зелинский Руслан Владимирович"},"\"Лицей № 2\""]
[21,"Сухов","Булат","м",7,7,21,null,null,{"$f":"J33","v":"Зелинский Руслан Владимирович"},"\"Лицей № 2\""]
[22,"Кордюков","Клим","м",7,7,14,null,null,{"$f":"J34","v":"Зелинский Руслан Владимирович"},{"$f":"K34","v":"\"Лицей № 2\""}]
[23,"Матвеев","Александр","м",7,7,14,null,null,{"$f":"J35","v":"Зелинский Руслан Владимирович"},"\"Лицей № 2\""]
[27,"Горелов","Иван","м",9,9,49,"Победитель",null,"Зелинский Руслан Владимирович","Лицей №2"]
[28,"Саттаров","Аяз","м",9,9,49,"Победитель",null,"Зелинский Руслан Владимирович","Лицей №2"]
[29,"Турцев","Арсений","м",9,9,42,"Призер",null,"Зелинский Руслан Владимирович","\"Лицей № 2\""]
[30,"Мустафин","Карим","м",9,9,35,null,null,"Зелинский Руслан Владимирович","\"Лицей № 2\""]
[null,"Заббаров","Руслан","м",9,9,42,"Призер",null,"Зелинский Руслан Владимирович","\"Лицей № 2\""]
[null,"Шабаев","Михаил","м",10,10,10,null,null,"Андреева Ирина Вячеславовна","\"Лицей № 2\""]
[null,"Борисова","Карина","ж",11,11,7,null,null,"Шагиева Алина Ленаровна","\"Лицей № 2\""]
[null,"Буров","Артем","м",11,11,16,null,null,"Шагиева Алина Ленаровна","\"Лицей № 2\""]
[null,"Нургалеев","Данил","м",11,11,14,null,null,"Шагиева Алина Ленаровна","\"Лицей № 2\""]
[null,"Сандракова","Юлия","ж",11,11,21,null,null,"Шагиева Алина Ленаровна","\"Лицей № 2\""]
[null,"Петрянин","Кирилл","м",11,11,14,null,null,"Шагиева Алина Ленаровна","\"Лицей № 2\""]
[null,"Сальников","Кирилл","м",11,11,7,null,null,"Шагиева Алина Ленаровна","\"Лицей № 2\""]
[null,"Яруллин","Анвар","м",11,11,30,"Победитель",null,"Шагиева Алина Ленаровна","\"Лицей № 2\""]
[null,"Бабаев ","Алексей","м",4,4,14,null,null,"Иванова Е.А.","МБОУ\"Лицей№2\""]
[null,"Бабаев ","Тимофей","м",4,4,14,null,null,"Иванова Е.А.","МБОУ\"Лицей№2\""]
[null,"Грачёв ","Владимир","м",4,4,11,null,null,"Иванова Е.А.","МБОУ\"Лицей№2\""]
[null,"Леванова","Серафима","м",4,4,11,null,null,"Иванова Е.А.","МБОУ\"Лицей№2\""]
[null,"Чапалов","Ратмир","м",4,4,7,null,null,"Иванова Е.А.","МБОУ\"Лицей№2\""]
[null,"Еремеева","Софья","ж",8,8,17,null,null,"Андреева Ирина Вячеславовна",{"$f":"K54","v":"МБОУ\"Лицей№2\""}]
[null,"Спатарь","Степан","м",8,8,17,null,null,"Андреева Ирина Вячеславовна","МБОУ\"Лицей№2\""]
[null,"Хуснуллина","Гульназ","ж",8,8,24,"Призер",null,"Андреева Ирина Вячеславовна","МБОУ\"Лицей№2\""]